[Event "Budapest Chess Festival 2024"]
[Site "Budapest"]
[Date "2024.05.31"]
[Round "9.16"]
[White "Mihok, Oliver"]
[Black "Neverov, Valeriy"]
[Result "0-1"]
[ECO "B97"]
[WhiteElo "2528"]
[BlackElo "2389"]
[Annotator "RC"]
[PlyCount "210"]
[EventDate "2024.05.20"]
[EventType "swiss"]
[EventCountry "HUN"]
[SourceTitle "playchess.com"]
[Source "ChessBase"]
[SourceQuality "1"]
[TimeControl "40/5400+30:1800+30"]

1. e4 {[%emt 0:00:36]} c5 {[%emt 0:00:39]} 2. Nf3 {[%emt 0:00:05]} d6 {[%emt 0:00:15]} 3. d4 {[%emt 0:00:06]} cxd4 {[%emt 0:00:03]} 4. Nxd4 {[%emt 0:00:05]} Nf6 {[%emt 0:00:05]} 5. Nc3 {[%emt 0:00:05]} a6 {[%emt 0:00:15]} 6. Bg5 {[%emt 0:00:07]} e6 {[%emt 0:00:15]} 7. f4 {[%emt 0:00:17]} Qb6 {[%emt 0:00:53]} 8. Nb3 {[%emt 0:00:45]} Be7 {[%emt 0:06:37]} 9. Qd2 {[%emt 0:03:57]} h6 {[%emt 0:04:22]} 10. Bxf6 {[%emt 0:04:00]} Bxf6 {[%emt 0:01:22]} 11. O-O-O {[%emt 0:00:14]} Be7 {[%emt 0:00:28]} 12. g4 {[%emt 0:02:57]} Nc6 {[%emt 0:08:08]} 13. h4 {[%emt 0:05:21]} Bd7 {[%emt 0:03:06]} 14. e5 {[%emt 0:14:47]} d5 {[%emt 0:03:10]} 15. Bg2 {[%emt 0:04:21]} a5 {[%emt 0:07:15]} 16. Bxd5 {[%emt 0:17:45]} a4 {[%emt 0:05:47]} 17. Bc4 {[%emt 0:11:05]} O-O {[%emt 0:05:57]} 18. Na1 {[%emt 0:02:03]} Na5 {[%emt 0:17:11]} 19. Be2 {[%emt 0:03:25]} a3 {[%emt 0:06:45]} 20. b3 {[%emt 0:00:59]} Bc6 {[%emt 0:01:24]} 21. Rh3 {[%emt 0:00:58]} Rfd8 {[%emt 0:00:27]} 22. Qe1 {[%emt 0:02:07]} Rxd1+ {[%emt 0:07:36]} 23. Bxd1 {[%emt 0:01:48]} Rd8 {[%emt 0:02:04]} 24. g5 {[%emt 0:02:56]} Nc4 {[%emt 0:10:01]} 25. Rd3 {[%emt 0:05:31]} Rxd3 {[%emt 0:04:02]} 26. cxd3 {[%emt 0:00:05]} Nb2 {[%emt 0:00:10]} 27. Kd2 {[%emt 0:03:00]} Qd4 {[%emt 0:01:02]} 28. Qe3 {[%emt 0:04:34]} Qxe3+ {[%emt 0:00:35]} 29. Kxe3 {[%emt 0:00:03]} Bb4 {[%emt 0:00:08]} 30. Nc2 {[%emt 0:00:20]} Bxc3 {[%emt 0:00:37]} 31. Be2 {[%emt 0:00:03]} f6 {[%emt 0:03:21]} 32. gxf6 {[%emt 0:02:45]} gxf6 {[%emt 0:00:06]} 33. d4 {[%emt 0:01:19]} fxe5 {[%emt 0:02:21]} 34. fxe5 {[%emt 0:00:10]} Kg7 {[%emt 0:00:26]} 35. h5 {[%emt 0:00:16]} b5 {[%emt 0:00:34]} 36. Nxa3 {[%emt 0:00:25]} b4 {[%emt 0:00:12]} 37. Nc2 {[%emt 0:04:32]} Kf7 {[%emt 0:00:31]} 38. a3 {[%emt 0:02:07]} bxa3 {[%emt 0:00:36]} 39. Nxa3 {[%emt 0:00:04]} Ke7 {[%emt 0:00:40]} 40. Nc4 {[%emt 0:00:00]} Nxc4+ {[%emt 0:00:00]} 41. bxc4 {[%emt 0:02:45]} Bg2 {[%emt 0:03:01]} 42. Kd3 {[%emt 0:03:08]} Bb2 {[%emt 0:01:42]} 43. Ke3 {[%emt 0:01:00]} Bh3 {[%emt 0:02:26]} 44. Kd3 {[%emt 0:02:33]} Kd7 {[%emt 0:05:36]} 45. Ke4 {[%emt 0:02:21]} Bf5+ {[%emt 0:06:59]} 46. Ke3 {[%emt 0:00:04]} Kc7 {[%emt 0:00:16]} 47. Bf3 {[%emt 0:01:25]} Bc1+ {[%emt 0:05:52]} 48. Kf2 {[%emt 0:01:00]} Kb6 {[%emt 0:05:32]} 49. d5 {[%emt 0:04:01]} Bf4 {[%emt 0:02:35]} 50. dxe6 {[%emt 0:00:21]} Bxe6 {[%emt 0:00:34]} 51. Bd5 {[%emt 0:01:56]} Bg4 {[%emt 0:00:06]} 52. Bf3 {[%emt 0:01:35]} Bd7 {[%emt 0:00:35]} 53. Bd5 {[%emt 0:01:46]} Be8 {[%emt 0:01:31]} 54. Kf3 {[%emt 0:02:23]} Bxe5 {[%emt 0:00:07]} 55. Kg4 {[%emt 0:00:10]} Bd7+ {[%emt 0:00:20]} 56. Kf3 {[%emt 0:00:25]} Be8 {[%emt 0:00:15]} 57. Kg4 {[%emt 0:00:03]} Bd7+ {[%emt 0:00:02]} 58. Kf3 {[%emt 0:00:20]} Kc5 {[%emt 0:00:05]} 59. Ke4 {[%emt 0:00:45]} Bb2 {[%emt 0:02:09]} 60. Bf7 {[%emt 0:00:30]} Ba4 {[%emt 0:00:43]} 61. Ke3 {[%emt 0:00:46]} Kd6 {[%emt 0:00:33]} 62. Ke4 {[%emt 0:02:26]} Bc2+ {[%emt 0:00:27]} 63. Ke3 {[%emt 0:00:16]} Ke5 {[%emt 0:00:27]} 64. Bg6 {[%emt 0:01:06]} Bd4+ {[%emt 0:00:33]} 65. Ke2 {[%emt 0:00:21]} Bb3 {[%emt 0:00:29]} 66. Kd3 {[%emt 0:00:12]} Bc5 {[%emt 0:00:34]} 67. Be8 {[%emt 0:00:47]} Bd1 {[%emt 0:00:19]} 68. Bg6 {[%emt 0:00:46]} Kf4 {[%emt 0:00:32]} 69. Kd2 {[%emt 0:00:47]} Bf3 {[%emt 0:00:40]} 70. Bf7 {[%emt 0:01:35]} Kg3 {[%emt 0:00:32]} 71. Bg6 {[%emt 0:00:57]} Kh4 {[%emt 0:00:25]} 72. Ke1 {[%emt 0:00:10]} Be3 {[%emt 0:00:24]} 73. Bf7 {[%emt 0:00:24]} Kg3 {[%emt 0:00:32]} 74. Bg6 {[%emt 0:00:35]} Kf4 {[%emt 0:00:35]} 75. Bf7 {[%emt 0:00:20]} Bg4 {[%emt 0:00:24]} 76. Kf1 {[%emt 0:00:42]} Kg3 {[%emt 0:00:33]} 77. Ke1 {[%emt 0:00:48]} Bf2+ {[%emt 0:00:35]} 78. Kd2 {[%emt 0:00:33]} Kf3 {[%emt 0:00:29]} 79. Bd5+ {[%emt 0:00:18]} Kf4 {[%emt 0:00:17]} 80. Bf7 {[%emt 0:00:03]} Ke4 {[%emt 0:00:27]} 81. Bg6+ {[%emt 0:01:12]} Kd4 {[%emt 0:00:12]} 82. Bf7 {[%emt 0:00:04]} Bf3 {[%emt 0:00:24]} 83. Kc2 {[%emt 0:00:23]} Be3 {[%emt 0:00:12]} 84. Kb3 {[%emt 0:01:36]} Ke5 {[%emt 0:00:55]} 85. c5 {[%emt 0:01:22]} Bxc5 {[%emt 0:00:16]} 86. Kc4 {[%emt 0:00:03]} Ba7 {[%emt 0:00:59]} 87. Kd3 {[%emt 0:00:27]} Kf4 {[%emt 0:00:11]} 88. Kd2 {[%emt 0:00:06]} Kg3 {[%emt 0:01:04]} 89. Ke1 {[%emt 0:00:26]} Bf2+ {[%emt 0:00:32]} 90. Kf1 {[%emt 0:00:32]} Bg4 {[%emt 0:00:30]} 91. Bg6 {[%emt 0:00:36]} Be3 {[%emt 0:00:31]} 92. Bf7 {[%emt 0:00:23]} Bd2 {[%emt 0:00:33]} 93. Bg6 {[%emt 0:00:13]} Kf3 {[%emt 0:00:26]} 94. Bf7 {[%emt 0:00:21]} Bh3+ {[%emt 0:00:23]} 95. Kg1 {[%emt 0:00:04]} Kg3 {[%emt 0:00:09]} 96. Bd5 {[%emt 0:01:31]} Be3+ {[%emt 0:00:13]} 97. Kh1 {[%emt 0:00:07]} Bg4 {[%emt 0:00:08]} 98. Bc6 {[%emt 0:00:37]} Bxh5 {[%emt 0:00:13]} 99. Bd5 {[%emt 0:00:09]} Be2 {[%emt 0:00:40]} 100. Bc6 {[%emt 0:00:07]} h5 {[%emt 0:00:12]} 101. Bd5 {[%emt 0:00:04]} h4 {[%emt 0:00:11]} 102. Bg2 {[%emt 0:00:12]} h3 {[%emt 0:01:46]} 103. Be4 {[%emt 0:00:06]} Bf1 {[%emt 0:00:19]} 104. Bd5 {[%emt 0:00:05]} Bg2+ {[%emt 0:00:05]} 105. Bxg2 {[%emt 0:00:05]} hxg2# 0-1

[Event "Budapest Chess Festival 2024"]
[Site "Budapest"]
[Date "2024.05.31"]
[Round "9.17"]
[White "Bai, Adelard"]
[Black "Kantor, Gergely"]
[Result "1-0"]
[ECO "E48"]
[WhiteElo "2376"]
[BlackElo "2527"]
[Annotator "TA"]
[PlyCount "73"]
[EventDate "2024.05.20"]
[EventType "swiss"]
[EventCountry "HUN"]
[SourceTitle "playchess.com"]
[Source "ChessBase"]
[SourceQuality "1"]
[TimeControl "40/5400+30:1800+30"]

{[%evp 16,73,18,-13,-22,-10,0,0,0,0,0,0,0,0,37,30,30,36,22,29,34,39,46,13,110,39,404,376,806,1266,1310,1302,1302,1309,1224,1317,1317,1317,1317,1292,1276,1276,1262,1262,1262,224,1220,1210,1091,1083,29984,29985,29982,29983,29982,29982,29990,29991,29995,902]} 1. d4 {[%emt 0:00:34]} Nf6 {[%emt 0:04:59]} 2. c4 {[%emt 0:00:22]} e6 {[%emt 0:00:17]} 3. Nc3 {[%emt 0:00:06]} Bb4 {[%emt 0:00:11]} 4. e3 {[%emt 0:00:09]} O-O {[%emt 0:01:10]} 5. Bd3 {[%emt 0:00:12]} d5 {[%emt 0:02:41]} 6. a3 {[%emt 0:00:22]} dxc4 {[%emt 0:02:26]} 7. Bxc4 {[%emt 0:01:12]} Bxc3+ {[%emt 0:00:25]} 8. bxc3 {[%emt 0:00:06]} c5 {[%emt 0:00:02]} 9. Ne2 {[%emt 0:00:09]} Qc7 {[%emt 0:00:50] White should prevent ...cxd4.} 10. Qd3 {[%emt 0:00:35]} b6 {[%emt 0:13:28]} 11. e4 {[%emt 0:00:35]} cxd4 {[%emt 0:08:01] The position is equal.} 12. cxd4 {[%emt 0:00:08]} Nxe4 $1 {[%emt 0:01:00] aiming for ...Nd6.} 13. Bf4 {[%emt 0:03:14]} ({Don't play} 13. Qxe4 Qxc4 14. O-O (14. Qxa8 $2 Nc6 $19) 14... Ba6 $17) 13... Qb7 {[%emt 0:08:11]} 14. O-O {[%emt 0:03:44]} Bd7 {[%emt 0:08:58]} 15. Be5 {[%emt 0:12:13] This pair of bishops is nice.} Bc6 {[%emt 0:12:44]} 16. f3 {[%emt 0:01:39]} Nf6 {[%emt 0:00:29]} 17. Bxf6 {[%emt 0:03:40]} gxf6 {[%emt 0:00:02]} 18. Nf4 $36 {[%emt 0:00:52][%mdl 2048] d5 would now be deadly. Black is under pressure.} Nd7 {[%emt 0:03:48]} 19. Rac1 {[%emt 0:14:45] Black must now prevent d5.} Rad8 {[%emt 0:02:23]} (19... Kh8 $11 {remains equal.}) 20. Ba2 {[%emt 0:04:19] White has more active pieces.} (20. Nh5 $16 {Ba6 is the strong threat.} Kh8 21. Ba6) 20... Qc7 $2 {[%emt 0:06:28][%mdl 8192] Loses the game.} ({Black should try} 20... Qb8 $14 21. Nh5 (21. Nxe6 fxe6 22. Bb1 Rf7 $19) 21... Ba8) 21. Nd5 $18 {[%emt 0:04:56]} exd5 $2 {[%emt 0:05:47]} ({But not} 21... Bxd5 22. Rxc7 Bxa2 23. Rxa7 $18) (21... Nc5) 22. Bb1 {[%emt 0:00:12][%csl Gb1][%cal Rd3h7]} Rfe8 {[%emt 0:02:17]} 23. Qxh7+ {[%emt 0:00:09]} Kf8 {[%emt 0:00:00][%cal Bg8f8,Bf8e7,Be7d6,Bd6d7][%mdl 32]} 24. Qh6+ {[%emt 0:00:33]} Ke7 {[%emt 0:01:43]} 25. Rfe1+ {[%emt 0:00:12]} Kd6 {[%emt 0:00:23]} 26. Qf4+ {[%emt 0:00:17]} Re5 {[%emt 0:00:31]} 27. dxe5+ {[%emt 0:02:56]} fxe5 {[%emt 0:00:04] [#]} 28. Rxe5 $3 {[%emt 0:04:47][%mdl 512]} Nxe5 {[%emt 0:02:12]} 29. Qf6+ {[%emt 0:00:03]} Kd7 {[%emt 0:01:21] [#]} 30. Bf5+ $1 {[%emt 0:00:01]} Ke8 {[%emt 0:01:49]} 31. Re1 {[%emt 0:00:02]} Bd7 {[%emt 0:01:01]} 32. Rxe5+ {[%emt 0:01:04]} Be6 {[%emt 0:00:04]} 33. Bxe6 {[%emt 0:01:00] White mates.} Qc5+ {[%emt 0:00:53]} 34. Kf1 {[%emt 0:00:12][%csl Ge6][%cal Rf6f7]} Qc4+ {[%emt 0:00:41]} 35. Kf2 {[%emt 0:00:42][%csl Ge6][%cal Rf6f7]} Qc2+ {[%emt 0:00:48]} 36. Kg3 {[%emt 0:00:24][%csl Ge6][%cal Rf6f7]} fxe6 {[%emt 0:02:10]} 37. Qxe6+ {[%emt 0:00:10] Weighted Error Value: White=0.12 (very precise) /Black=0.57.  Loses game:     	---       	Black=1      Mistake:       	White=1     	Black=2      Inaccurate:     	White=1     	Black=1      OK:         	White=5     	Black=4      Best:        	White=3     	Black=3      Strong:       	---       	Black=1} 1-0

[Event "Budapest Chess Festival 2024"]
[Site "Budapest"]
[Date "2024.05.31"]
[Round "9.18"]
[White "Parkhov, Yair"]
[Black "Cieslak, Patryk"]
[Result "1-0"]
[ECO "D35"]
[WhiteElo "2510"]
[BlackElo "2369"]
[Annotator "TA"]
[PlyCount "79"]
[EventDate "2024.05.20"]
[EventType "swiss"]
[EventCountry "HUN"]
[SourceTitle "playchess.com"]
[Source "ChessBase"]
[SourceQuality "1"]
[TimeControl "40/5400+30:1800+30"]

{[%evp 12,79,33,32,29,26,35,26,26,21,38,8,15,7,16,2,18,18,31,16,45,47,52,51,38,52,50,37,43,34,53,68,65,58,62,0,7,5,25,12,74,54,178,168,203,202,197,200,194,173,311,313,405,397,1182,1189,1189,1185,1175,1152,1136,1125,1128,1107,961,643,674,667,627,609]} 1. d4 {[%emt 0:00:31]} d5 {[%emt 0:00:34]} 2. c4 {[%emt 0:00:04]} e6 {[%emt 0:00:03]} 3. Nc3 {[%emt 0:00:08]} Nf6 {[%emt 0:00:02]} 4. cxd5 {[%emt 0:00:05]} exd5 {[%emt 0:00:04]} 5. Bg5 {[%emt 0:00:07][%cal Bc1g5,Bg5h4,Bh4g3][%mdl 32]} Bb4 {[%emt 0:00:03]} 6. e3 {[%emt 0:00:16]} h6 {[%emt 0:00:06]} 7. Bh4 {[%emt 0:00:13]} g5 {[%emt 0:00:06]} 8. Bg3 {[%emt 0:00:03]} Ne4 {[%emt 0:00:08]} 9. a3 {[%emt 0:00:17]} Bxc3+ {[%emt 0:00:24] White has an edge.} 10. bxc3 {[%emt 0:00:05]} Nc6 {[%emt 0:00:34][%cal Oh6h5]} 11. f3 {[%emt 0:00:17]} Nxg3 {[%emt 0:01:10]} 12. hxg3 {[%emt 0:00:04]} Qd6 {[%emt 0:09:51]} 13. Kf2 {[%emt 0:02:41]} Be6 {[%emt 0:05:51]} 14. Qa4 {[%emt 0:13:17]} O-O-O {[%emt 0:14:00][%cal Be8c8,Bc8b8,Bb8a8][%mdl 32]} 15. Bb5 {[%emt 0:06:29]} Kb8 {[%emt 0:03:10]} 16. Bxc6 {[%emt 0:03:45]} Qxc6 {[%emt 0:00:43]} 17. Qxc6 {[%emt 0:00:05]} bxc6 {[%emt 0:00:02]} 18. Ne2 {[%emt 0:05:30]} Ka8 {[%emt 0:02:14]} 19. Rab1 {[%emt 0:06:51]} Bf5 {[%emt 0:07:21]} 20. Rb4 {[%emt 0:01:17]} Bc2 {[%emt 0:03:44]} 21. g4 {[%emt 0:06:18]} a5 {[%emt 0:03:34]} 22. Rb2 {[%emt 0:01:46]} Bg6 {[%emt 0:01:17]} 23. Rd1 {[%emt 0:04:08]} (23. Rd2 $14) 23... Rb8 $11 {[%emt 0:08:09]} 24. Rdd2 {[%emt 0:00:22]} h5 {[%emt 0:02:33]} 25. gxh5 {[%emt 0:00:43]} Bxh5 {[%emt 0:01:26] [#]} (25... Rxh5 $11 26. Rxb8+ Kxb8) 26. c4 $1 $16 {[%emt 0:05:16]} f6 {[%emt 0:11:32] A mistake that costs the game.} ({Better is} 26... Bg6 $1 $14) 27. cxd5 $18 {[%emt 0:04:44]} cxd5 {[%emt 0:00:47] [#]} 28. Rbc2 $1 {[%emt 0:00:36]} g4 {[%emt 0:02:58]} 29. Rxc7 {[%emt 0:01:08]} gxf3 {[%emt 0:00:09]} 30. gxf3 {[%emt 0:00:05] Rc5 would now be deadly.} Bg6 {[%emt 0:00:47]} (30... Rb3 {was necessary.} 31. a4 Be8) 31. Rc5 $1 {[%emt 0:04:36][%csl LRa5,LRd5]} Rh2+ {[%emt 0:02:24]} 32. Kg3 {[%emt 0:01:31]} Rbh8 $2 {[%emt 0:02:42]} (32... Rh7 33. Nf4 (33. Rxa5+ Ra7 $18) (33. Rxd5 a4 $18) 33... a4 34. Nxg6 Rg8 35. Ra5+ Kb8 36. Rb2+ Rb7) 33. Rxa5+ {[%emt 0:00:40] White is clearly winning.} Kb7 {[%emt 0:00:02]} 34. Rb2+ {[%emt 0:00:14]} ({And not} 34. Rxd5 R8h3+ 35. Kf4 Rh4+ 36. Kg3 R4h3+ 37. Kf4 Rh4+ 38. Kg3 R4h3+ $11) 34... Kc7 {[%emt 0:00:27]} 35. Rc5+ {[%emt 0:00:38]} ({Stronger than} 35. Rxd5 R8h3+ 36. Kf4 Rh4+ 37. Kg3 R4h3+ 38. Kg4 (38. Kf4 Rh4+ 39. Kg3 R4h3+ $11) 38... Rh4+ 39. Kg3 R4h3+ $11) 35... Kd6 {[%emt 0:00:28]} 36. Rb6+ {[%emt 0:01:06]} Kd7 {[%emt 0:00:12]} 37. Nf4 {[%emt 0:00:16] Intending Rb7+ and mate.} ({Weaker is} 37. Rxf6 R2h3+ 38. Kf4 R3h4+ 39. Kg3 (39. Kg5 R8h5+ 40. Kxg6 Rh6+ 41. Kg7 Rh7+ 42. Kg6 R7h6+ 43. Kg7 Rh7+ 44. Kg6 R7h6+ $11) 39... Rh3+ 40. Kf2 Rh2+ 41. Kg3 R2h3+ $11) 37... Be8 {[%emt 0:00:08]} 38. Rxf6 {[%emt 0:04:52]} Rh1 {[%emt 0:00:10]} 39. Rxd5+ {[%emt 0:00:21]} Kc8 {[%emt 0:00:09]} 40. e4 {[%emt 0:00:00] Weighted Error Value: White=0.24 (precise) /Black=0.23 (precise) .  Mistake:       	White=1     	Black=4      Inaccurate:     	White=1     	Black=1      OK:         	White=11    	Black=8      Best:        	White=2     	Black=1      Strong:       	White=2     	---} 1-0

[Event "Budapest Chess Festival 2024"]
[Site "Budapest"]
[Date "2024.05.31"]
[Round "9.19"]
[White "Arhan, Chethan Anand"]
[Black "Visakh N R"]
[Result "1/2-1/2"]
[ECO "C47"]
[WhiteElo "2366"]
[BlackElo "2511"]
[Annotator "TA"]
[PlyCount "48"]
[EventDate "2024.05.20"]
[EventType "swiss"]
[EventCountry "HUN"]
[SourceTitle "playchess.com"]
[Source "ChessBase"]
[SourceQuality "1"]
[TimeControl "40/5400+30:1800+30"]

{[%evp 17,48,0,5,-1,0,0,0,0,30,25,28,-15,-23,-11,-6,-12,-11,-10,0,-8,28,34,24,27,22,29,20,43,21,30,25,35,54]} 1. e4 {[%emt 0:00:33]} e5 {[%emt 0:00:51]} 2. Nf3 {[%emt 0:00:06]} Nc6 {[%emt 0:00:06]} 3. Nc3 {[%emt 0:00:06]} Nf6 {[%emt 0:01:26]} 4. d4 {[%emt 0:00:05]} exd4 {[%emt 0:09:13]} 5. Nxd4 {[%emt 0:00:07]} Bb4 {[%emt 0:00:03]} 6. Nxc6 {[%emt 0:00:06]} bxc6 {[%emt 0:00:01]} 7. Bd3 {[%emt 0:00:06]} d5 {[%emt 0:03:53]} 8. exd5 {[%emt 0:00:07]} cxd5 {[%emt 0:00:05]} 9. O-O {[%emt 0:00:08]} O-O {[%emt 0:00:36]} 10. h3 {[%emt 0:00:05]} Rb8 {[%emt 0:02:10]} 11. Be3 {[%emt 0:00:32]} a5 {[%emt 0:04:42]} ({And not} 11... d4 12. Bxd4 Be6 13. Bxa7 $18) 12. Bd4 {[%emt 0:16:59] The position is equal.} Be7 {[%emt 0:03:57]} 13. Qf3 {[%emt 0:03:57]} Be6 {[%emt 0:15:10]} 14. Ne2 {[%emt 0:05:54]} c5 {[%emt 0:06:57]} 15. Be5 {[%emt 0:01:01]} Bd6 {[%emt 0:01:29]} 16. Bxd6 {[%emt 0:03:18]} Qxd6 {[%emt 0:00:03]} 17. b3 {[%emt 0:01:15]} Rb4 {[%emt 0:00:07]} 18. c3 {[%emt 0:04:04]} Rh4 {[%emt 0:04:38]} 19. Qg3 {[%emt 0:03:56]} Qxg3 {[%emt 0:00:07]} 20. fxg3 {[%emt 0:01:36]} Rh5 {[%emt 0:01:05]} 21. Nf4 {[%emt 0:03:14]} Re5 {[%emt 0:00:08]} 22. Rae1 {[%emt 0:00:54]} Rxe1 {[%emt 0:00:18]} 23. Rxe1 {[%emt 0:00:04][%cal Og3g4]} Re8 {[%emt 0:02:16]} 24. Bb5 {[%emt 0:10:13]} Rb8 {[%emt 0:00:53] Weighted Error Value: White=0.05 (flawless) /Black=0.07 (flawless) .  Inaccurate:     	White=1     	Black=2      OK:         	White=6     	Black=9} 1/2-1/2

[Event "Budapest Chess Festival 2024"]
[Site "Budapest"]
[Date "2024.05.31"]
[Round "9.20"]
[White "Borgaonkar, Akshay"]
[Black "Popovic, Dusan"]
[Result "1/2-1/2"]
[ECO "C41"]
[WhiteElo "2372"]
[BlackElo "2486"]
[Annotator "TA"]
[PlyCount "46"]
[EventDate "2024.05.20"]
[EventType "swiss"]
[EventCountry "HUN"]
[SourceTitle "playchess.com"]
[Source "ChessBase"]
[SourceQuality "1"]
[TimeControl "40/5400+30:1800+30"]

{[%evp 10,46,18,17,25,25,28,23,27,17,28,33,42,40,39,32,43,35,44,0,0,0,54,0,23,19,0,0,0,0,20,18,18,0,0,0,0,0,0]} 1. e4 {[%emt 0:00:32]} d6 {[%emt 0:01:42]} 2. d4 {[%emt 0:00:14]} Nf6 {[%emt 0:00:05]} 3. Nc3 {[%emt 0:00:09]} e5 {[%emt 0:00:06]} 4. Nf3 {[%emt 0:00:21]} Nbd7 {[%emt 0:00:06]} 5. Bc4 {[%emt 0:00:56]} Be7 {[%emt 0:00:05]} 6. O-O {[%emt 0:00:17][%cal Oc4f7] [#] And now Bxf7+! would win.} Nb6 {[%emt 0:00:50]} 7. Be2 {[%emt 0:05:40]} exd4 {[%emt 0:01:21]} 8. Nxd4 {[%emt 0:01:35]} O-O {[%emt 0:00:05] White has an edge.} 9. a4 {[%emt 0:05:46]} a5 $1 {[%emt 0:01:10]} 10. b3 {[%emt 0:02:12]} Re8 {[%emt 0:00:17]} 11. f4 {[%emt 0:05:01]} Bf8 {[%emt 0:01:03]} 12. Bf3 {[%emt 0:00:10]} c6 {[%emt 0:00:30]} 13. Bb2 {[%emt 0:05:24]} Nbd7 {[%emt 0:00:14]} 14. Qd2 {[%emt 0:05:22]} Nc5 {[%emt 0:01:05][%cal Rc5e4]} 15. Rfe1 {[%emt 0:02:58]} Qc7 {[%emt 0:00:05]} (15... Bg4 $11) 16. Rad1 {[%emt 0:01:47]} Bg4 {[%emt 0:02:12]} 17. Bxg4 {[%emt 0:03:30]} Nxg4 {[%emt 0:00:30] The position is equal.} 18. Qe2 {[%emt 0:01:04]} Nf6 {[%emt 0:01:18]} 19. Qf3 {[%emt 0:00:38]} Rad8 {[%emt 0:00:30]} 20. Nf5 {[%emt 0:04:23]} Re6 {[%emt 0:15:18]} 21. Nd4 {[%emt 0:09:35]} Ree8 {[%emt 0:00:53]} 22. Nf5 {[%emt 0:03:15][%cal Of5h6]} Re6 {[%emt 0:02:00]} 23. Nd4 {[%emt 0:06:15]} Ree8 {[%emt 0:00:22] Weighted Error Value: White=0.07 (flawless) /Black=0.08 (flawless) .  Mistake:       	---       	Black=1      Inaccurate:     	White=2     	---        OK:         	White=5     	Black=8      Strong:       	---       	Black=1} 1/2-1/2